[Event "Late-Titled-Tuesday-Blitz-July-09-2024"]
[Site "Chess.com"]
[Date "2024.07.09"]
[Round "7"]
[White "malakismayil"]
[Black "schachlana"]
[Result "1-0"]
[WhiteElo "2530"]
[BlackElo "2357"]
[TimeControl "180+1"]
[EndTime "15:17:42 PDT"]
[Termination "malakismayil won by resignation"]

1. e4 {[%clk 0:03:00.9]} 1... c5 {[%clk 0:02:59.6]} 2. Nf3 {[%clk 0:02:58.3]}
2... a6 {[%clk 0:03:00.3]} 3. Nc3 {[%clk 0:02:54]} 3... e6 {[%clk 0:02:58.4]} 4.
g3 {[%clk 0:02:50.1]} 4... Nc6 {[%clk 0:02:55.8]} 5. Bg2 {[%clk 0:02:50.5]} 5...
Qc7 {[%clk 0:02:55]} 6. O-O {[%clk 0:02:51.1]} 6... Nf6 {[%clk 0:02:54]} 7. d3
{[%clk 0:02:51.5]} 7... d6 {[%clk 0:02:53.4]} 8. Bf4 {[%clk 0:02:51.4]} 8... Be7
{[%clk 0:02:53.2]} 9. Re1 {[%clk 0:02:51.5]} 9... O-O {[%clk 0:02:53.3]} 10. e5
{[%clk 0:02:50.9]} 10... dxe5 {[%clk 0:02:54.2]} 11. Nxe5 {[%clk 0:02:51.4]}
11... Nxe5 {[%clk 0:02:52.7]} 12. Bxe5 {[%clk 0:02:52.3]} 12... Qb6 {[%clk
0:02:50.2]} 13. a3 {[%clk 0:02:51.8]} 13... Bd7 {[%clk 0:02:42.8]} 14. Ne4
{[%clk 0:02:41.6]} 14... Nxe4 {[%clk 0:02:40.2]} 15. Bxe4 {[%clk 0:02:42.5]}
15... f6 {[%clk 0:02:35.6]} 16. Qh5 {[%clk 0:02:33.6]} 16... f5 {[%clk
0:02:35.6]} 17. Bg2 {[%clk 0:02:28.5]} 17... Bf6 {[%clk 0:02:26.6]} 18. Qe2
{[%clk 0:02:23.3]} 18... Rad8 {[%clk 0:02:18.4]} 19. Kh1 {[%clk 0:02:02.5]}
19... Bc6 {[%clk 0:02:08.1]} 20. f4 {[%clk 0:01:58.1]} 20... Bxg2+ {[%clk
0:02:05.8]} 21. Qxg2 {[%clk 0:01:59]} 21... Bxe5 {[%clk 0:02:06.1]} 22. Rxe5
{[%clk 0:01:57.6]} 22... Qxb2 {[%clk 0:02:06.7]} 23. Rae1 {[%clk 0:01:57.5]}
23... Qxa3 {[%clk 0:02:03.1]} 24. Rxe6 {[%clk 0:01:56.9]} 24... b5 {[%clk
0:01:56.7]} 25. Re7 {[%clk 0:01:54.1]} 25... Qc3 {[%clk 0:01:51.4]} 26. Qb7
{[%clk 0:01:46.3]} 26... Rf7 {[%clk 0:01:30]} 27. Re8+ {[%clk 0:01:21.9]} 27...
Rf8 {[%clk 0:01:24.9]} 28. R8e7 {[%clk 0:01:04.6]} 28... Rf7 {[%clk 0:01:17.7]}
29. Qxa6 {[%clk 0:01:01.5]} 29... Rxe7 {[%clk 0:01:14.6]} 30. Rxe7 {[%clk
0:01:02.4]} 30... Qf6 {[%clk 0:00:57.7]} 31. Re6 {[%clk 0:00:44]} 31... Qf7
{[%clk 0:00:52.2]} 32. Qb6 {[%clk 0:00:36.3]} 32... Rc8 {[%clk 0:00:48.4]} 33.
Rd6 {[%clk 0:00:34.3]} 33... Qe7 {[%clk 0:00:46.7]} 34. Re6 {[%clk 0:00:26.8]}
34... Qd7 {[%clk 0:00:44.1]} 35. Kg2 {[%clk 0:00:16.8]} 35... c4 {[%clk
0:00:39.1]} 36. d4 {[%clk 0:00:15.2]} 36... Ra8 {[%clk 0:00:33.2]} 37. Kh3
{[%clk 0:00:10.9]} 37... Re8 {[%clk 0:00:27]} 38. d5 {[%clk 0:00:04.9]} 38...
Rd8 {[%clk 0:00:21.5]} 39. Re5 {[%clk 0:00:04]} 39... h6 {[%clk 0:00:16.9]} 40.
Qe6+ {[%clk 0:00:03.1]} 40... Qxe6 {[%clk 0:00:16.8]} 41. dxe6 {[%clk 0:00:04]}
41... Re8 {[%clk 0:00:14]} 42. Rxb5 {[%clk 0:00:03.5]} 42... Rxe6 {[%clk
0:00:14.2]} 43. Rc5 {[%clk 0:00:04.2]} 43... Re4 {[%clk 0:00:14.1]} 44. Rxf5
{[%clk 0:00:04.1]} 44... Kh7 {[%clk 0:00:13.1]} 45. Rc5 {[%clk 0:00:03.7]} 45...
Kg6 {[%clk 0:00:13.2]} 46. Kg4 {[%clk 0:00:03.9]} 46... Kf6 {[%clk 0:00:13.2]}
47. h4 {[%clk 0:00:03.6]} 47... Rd4 {[%clk 0:00:13.2]} 48. c3 {[%clk 0:00:03.3]}
48... Rd3 {[%clk 0:00:05.9]} 49. Rxc4 {[%clk 0:00:03.5]} 49... h5+ {[%clk
0:00:05]} 50. Kh3 {[%clk 0:00:03.7]} 50... Kf5 {[%clk 0:00:05]} 51. Rc5+ {[%clk
0:00:03.9]} 51... Kg6 {[%clk 0:00:05.2]} 52. Rc6+ {[%clk 0:00:03.4]} 52... Kf5
{[%clk 0:00:05.2]} 53. c4 {[%clk 0:00:04.3]} 53... Rc3 {[%clk 0:00:04.6]} 54.
Rc5+ {[%clk 0:00:04.3]} 54... Kf6 {[%clk 0:00:04.3]} 55. Rc7 {[%clk 0:00:03.9]}
55... g6 {[%clk 0:00:04.6]} 56. c5 {[%clk 0:00:04.3]} 56... Ke6 {[%clk
0:00:04.9]} 57. c6 {[%clk 0:00:04.2]} 57... Kd6 {[%clk 0:00:05.4]} 58. Rg7
{[%clk 0:00:04.3]} 58... Kd5 {[%clk 0:00:02.5]} 59. Rxg6 {[%clk 0:00:05.2]}
59... Rc2 {[%clk 0:00:02.7]} 60. Rg5+ {[%clk 0:00:05]} 60... Kd4 {[%clk
0:00:03]} 61. Rxh5 {[%clk 0:00:05.9]} 61... Rc1 {[%clk 0:00:02.9]} 62. Re5
{[%clk 0:00:05.7]} 62... Rxc6 {[%clk 0:00:03.5]} 63. Kg4 {[%clk 0:00:06.2]}
63... Rh6 {[%clk 0:00:03.5]} 64. Rg5 {[%clk 0:00:06.9]} 64... Ke4 {[%clk
0:00:03.7]} 65. Re5+ {[%clk 0:00:07.2]} 65... Kd4 {[%clk 0:00:03.5]} 66. h5
{[%clk 0:00:08.1]} 66... Kd3 {[%clk 0:00:03.5]} 67. Kg5 {[%clk 0:00:08.6]} 67...
Kd4 {[%clk 0:00:04.4]} 68. Kxh6 {[%clk 0:00:08.5]} 1-0

[Event "Late-Titled-Tuesday-Blitz-July-09-2024"]
[Site "Chess.com"]
[Date "2024.07.09"]
[Round "7"]
[White "Goryachkina"]
[Black "WPWPWP-2015"]
[Result "1-0"]
[WhiteElo "2716"]
[BlackElo "2526"]
[TimeControl "180+1"]
[EndTime "15:17:51 PDT"]
[Termination "Goryachkina won by checkmate"]

1. e4 {[%clk 0:03:00.2]} 1... e5 {[%clk 0:02:59.2]} 2. Nf3 {[%clk 0:03:00.2]}
2... Nc6 {[%clk 0:02:59.4]} 3. Bc4 {[%clk 0:03:00.5]} 3... Nf6 {[%clk
0:02:59.1]} 4. d3 {[%clk 0:03:00.2]} 4... Bc5 {[%clk 0:02:57.4]} 5. c3 {[%clk
0:02:55.1]} 5... O-O {[%clk 0:02:56.9]} 6. O-O {[%clk 0:02:51.9]} 6... Re8
{[%clk 0:02:54.5]} 7. Nbd2 {[%clk 0:02:48.7]} 7... a5 {[%clk 0:02:50.8]} 8. h3
{[%clk 0:02:35.9]} 8... d5 {[%clk 0:02:49.6]} 9. Bb5 {[%clk 0:02:33]} 9... Bd7
{[%clk 0:02:45.5]} 10. a4 {[%clk 0:02:29.9]} 10... h6 {[%clk 0:02:42.1]} 11. Re1
{[%clk 0:02:27.6]} 11... d4 {[%clk 0:02:41.1]} 12. Nf1 {[%clk 0:02:21.2]} 12...
Nh7 {[%clk 0:02:10.1]} 13. Ng3 {[%clk 0:02:17.3]} 13... Nf8 {[%clk 0:02:08.9]}
14. Bxc6 {[%clk 0:02:01.8]} 14... Bxc6 {[%clk 0:02:01.9]} 15. c4 {[%clk
0:02:01.9]} 15... Bd7 {[%clk 0:01:54.8]} 16. Bd2 {[%clk 0:02:00.8]} 16... Ng6
{[%clk 0:01:52]} 17. Nh2 {[%clk 0:01:57.8]} 17... Kh7 {[%clk 0:01:49.1]} 18. Nf5
{[%clk 0:01:52.7]} 18... Qc8 {[%clk 0:01:46.8]} 19. Qh5 {[%clk 0:01:49.5]} 19...
Bf8 {[%clk 0:01:42.9]} 20. Ng4 {[%clk 0:01:35.9]} 20... Bxf5 {[%clk 0:00:57.1]}
21. exf5 {[%clk 0:01:34.8]} 21... Nh8 {[%clk 0:00:57.3]} 22. Nxe5 {[%clk
0:01:30.8]} 22... Ra6 {[%clk 0:00:51.6]} 23. Nxf7 {[%clk 0:01:26.5]} 23... Nxf7
{[%clk 0:00:49.6]} 24. Qxf7 {[%clk 0:01:25.3]} 24... Rxe1+ {[%clk 0:00:49.1]}
25. Rxe1 {[%clk 0:01:25.6]} 25... Rf6 {[%clk 0:00:49]} 26. Qd5 {[%clk
0:01:11.2]} 26... Qxf5 {[%clk 0:00:41.1]} 27. Qxd4 {[%clk 0:01:06.1]} 27... Rd6
{[%clk 0:00:40.4]} 28. Qe4 {[%clk 0:01:03.9]} 28... Qxe4 {[%clk 0:00:40.1]} 29.
Rxe4 {[%clk 0:01:04]} 29... Rxd3 {[%clk 0:00:40.2]} 30. Bxa5 {[%clk 0:01:04.1]}
30... Bd6 {[%clk 0:00:34.1]} 31. g3 {[%clk 0:00:57.4]} 31... b6 {[%clk
0:00:23.3]} 32. Bc3 {[%clk 0:00:56.7]} 32... Rd1+ {[%clk 0:00:22.3]} 33. Kg2
{[%clk 0:00:56.8]} 33... Ra1 {[%clk 0:00:22.1]} 34. c5 {[%clk 0:00:29.9]} 34...
Bxc5 {[%clk 0:00:19.1]} 35. b4 {[%clk 0:00:29.6]} 35... Rc1 {[%clk 0:00:17.5]}
36. Bxg7 {[%clk 0:00:21.8]} 36... Kxg7 {[%clk 0:00:15.7]} 37. bxc5 {[%clk
0:00:21.5]} 37... Rxc5 {[%clk 0:00:15.7]} 38. g4 {[%clk 0:00:19.8]} 38... Kf6
{[%clk 0:00:15.5]} 39. Kg3 {[%clk 0:00:18.8]} 39... Rc3+ {[%clk 0:00:13]} 40. f3
{[%clk 0:00:19.2]} 40... c5 {[%clk 0:00:13.1]} 41. h4 {[%clk 0:00:18.6]} 41...
Rb3 {[%clk 0:00:12.1]} 42. Kf4 {[%clk 0:00:17.8]} 42... Ra3 {[%clk 0:00:07.1]}
43. g5+ {[%clk 0:00:15.8]} 43... hxg5+ {[%clk 0:00:07.5]} 44. hxg5+ {[%clk
0:00:16.5]} 44... Kf7 {[%clk 0:00:07.7]} 45. Kg4 {[%clk 0:00:15.4]} 45... Rb3
{[%clk 0:00:08]} 46. f4 {[%clk 0:00:11.7]} 46... Rb4 {[%clk 0:00:03.2]} 47. Kf5
{[%clk 0:00:12]} 47... Rb1 {[%clk 0:00:02.6]} 48. Rc4 {[%clk 0:00:08.2]} 48...
Rd1 {[%clk 0:00:02]} 49. a5 {[%clk 0:00:07.3]} 49... bxa5 {[%clk 0:00:01.9]} 50.
Rxc5 {[%clk 0:00:07.6]} 50... a4 {[%clk 0:00:02.2]} 51. Rc7+ {[%clk 0:00:07.3]}
51... Kf8 {[%clk 0:00:02.1]} 52. Ra7 {[%clk 0:00:07.6]} 52... Rd4 {[%clk
0:00:01.7]} 53. Ke5 {[%clk 0:00:07.5]} 53... Rb4 {[%clk 0:00:01.8]} 54. g6
{[%clk 0:00:05.7]} 54... Kg8 {[%clk 0:00:01]} 55. f5 {[%clk 0:00:05.4]} 55...
Rb5+ {[%clk 0:00:01.3]} 56. Kf6 {[%clk 0:00:05.6]} 56... Rb6+ {[%clk 0:00:01.6]}
57. Kg5 {[%clk 0:00:06.1]} 57... Rb4 {[%clk 0:00:01.3]} 58. f6 {[%clk 0:00:04]}
58... Rb5+ {[%clk 0:00:01.6]} 59. Kf4 {[%clk 0:00:04.2]} 59... Rb4+ {[%clk
0:00:01.7]} 60. Ke5 {[%clk 0:00:04.7]} 60... Rb5+ {[%clk 0:00:01.9]} 61. Kd4
{[%clk 0:00:04.6]} 61... Rb8 {[%clk 0:00:01.9]} 62. Rxa4 {[%clk 0:00:03.4]}
62... Rd8+ {[%clk 0:00:02.8]} 63. Ke5 {[%clk 0:00:03.7]} 63... Re8+ {[%clk
0:00:03.7]} 64. Kf5 {[%clk 0:00:04.3]} 64... Rb8 {[%clk 0:00:04.5]} 65. Re4
{[%clk 0:00:04.2]} 65... Rb5+ {[%clk 0:00:04.6]} 66. Re5 {[%clk 0:00:04.6]}
66... Rb8 {[%clk 0:00:05.5]} 67. f7+ {[%clk 0:00:04]} 67... Kf8 {[%clk 0:00:06]}
68. Kg5 {[%clk 0:00:03.1]} 68... Kg7 {[%clk 0:00:06.2]} 69. Re8 {[%clk
0:00:03.1]} 69... Rb5+ {[%clk 0:00:06.4]} 70. Kf4 {[%clk 0:00:03.5]} 70... Rf5+
{[%clk 0:00:06.2]} 71. Kxf5 {[%clk 0:00:03.3]} 71... Kh6 {[%clk 0:00:06.5]} 72.
Rh8+ {[%clk 0:00:03.3]} 72... Kg7 {[%clk 0:00:06.6]} 73. f8=Q# {[%clk
0:00:03.9]} 1-0

[Event "Late-Titled-Tuesday-Blitz-July-09-2024"]
[Site "Chess.com"]
[Date "2024.07.09"]
[Round "7"]
[White "legendisback1"]
[Black "Aygehovit1992"]
[Result "1/2-1/2"]
[WhiteElo "3023"]
[BlackElo "2800"]
[TimeControl "180+1"]
[EndTime "15:17:58 PDT"]
[Termination "Game drawn - insufficient material"]

1. Nf3 {[%clk 0:03:00.9]} 1... Nf6 {[%clk 0:02:56.4]} 2. b3 {[%clk 0:03:00.4]}
2... g6 {[%clk 0:02:55.5]} 3. Bb2 {[%clk 0:03:01.3]} 3... Bg7 {[%clk 0:02:56.4]}
4. e3 {[%clk 0:03:01]} 4... O-O {[%clk 0:02:52.8]} 5. c4 {[%clk 0:02:57.5]} 5...
c5 {[%clk 0:02:51.5]} 6. Be2 {[%clk 0:02:57.3]} 6... Nc6 {[%clk 0:02:50.7]} 7.
O-O {[%clk 0:02:56.7]} 7... b6 {[%clk 0:02:45.2]} 8. d4 {[%clk 0:02:55.8]} 8...
cxd4 {[%clk 0:02:45.3]} 9. Nxd4 {[%clk 0:02:47.6]} 9... Bb7 {[%clk 0:02:41.6]}
10. Nc3 {[%clk 0:02:37.5]} 10... Rc8 {[%clk 0:02:33.8]} 11. Rc1 {[%clk
0:02:32.6]} 11... Nxd4 {[%clk 0:02:17.2]} 12. Qxd4 {[%clk 0:02:31.3]} 12... Ne4
{[%clk 0:02:15.4]} 13. Qd3 {[%clk 0:02:14.6]} 13... d5 {[%clk 0:02:14.7]} 14.
cxd5 {[%clk 0:01:58.1]} 14... Nxc3 {[%clk 0:02:12.9]} 15. Bxc3 {[%clk 0:01:59]}
15... Qxd5 {[%clk 0:02:12.4]} 16. Qxd5 {[%clk 0:01:58.2]} 16... Bxd5 {[%clk
0:02:13.1]} 17. Bb4 {[%clk 0:01:53.8]} 17... Bf6 {[%clk 0:02:04.8]} 18. Ba6
{[%clk 0:01:53.6]} 18... Rxc1 {[%clk 0:02:03]} 19. Rxc1 {[%clk 0:01:54.5]} 19...
Be6 {[%clk 0:01:57.2]} 20. Kf1 {[%clk 0:01:31.9]} 20... Rd8 {[%clk 0:01:47.4]}
21. Ke2 {[%clk 0:01:30.7]} 21... Rd5 {[%clk 0:01:13.7]} 22. Rc7 {[%clk
0:00:53.2]} 22... Rg5 {[%clk 0:01:06.8]} 23. g3 {[%clk 0:00:46.8]} 23... Rh5
{[%clk 0:00:54.2]} 24. h4 {[%clk 0:00:44.9]} 24... g5 {[%clk 0:00:54.5]} 25.
hxg5 {[%clk 0:00:45]} 25... Bxg5 {[%clk 0:00:53.8]} 26. Bxe7 {[%clk 0:00:33.8]}
26... Bxe7 {[%clk 0:00:53.9]} 27. Rxe7 {[%clk 0:00:34.7]} 27... Ra5 {[%clk
0:00:53.9]} 28. Bc4 {[%clk 0:00:17.3]} 28... Rxa2+ {[%clk 0:00:51.3]} 29. Kf3
{[%clk 0:00:17.5]} 29... Bxc4 {[%clk 0:00:47.7]} 30. bxc4 {[%clk 0:00:18.4]}
30... a5 {[%clk 0:00:46.1]} 31. Rb7 {[%clk 0:00:17.5]} 31... Rc2 {[%clk
0:00:45.8]} 32. Rxb6 {[%clk 0:00:17.5]} 32... Rxc4 {[%clk 0:00:46]} 33. Ra6
{[%clk 0:00:18.4]} 33... a4 {[%clk 0:00:44.3]} 34. g4 {[%clk 0:00:19.3]} 34...
Rb4 {[%clk 0:00:41.7]} 35. Kg3 {[%clk 0:00:20.2]} 35... Kg7 {[%clk 0:00:41.7]}
36. f3 {[%clk 0:00:17.4]} 36... Rb3 {[%clk 0:00:41]} 37. Kf4 {[%clk 0:00:16.4]}
37... a3 {[%clk 0:00:41.2]} 38. g5 {[%clk 0:00:16.1]} 38... Rb4+ {[%clk
0:00:36]} 39. e4 {[%clk 0:00:16.5]} 39... Rb3 {[%clk 0:00:36.9]} 40. Kg4 {[%clk
0:00:16.8]} 40... Re3 {[%clk 0:00:35.9]} 41. Ra4 {[%clk 0:00:16.8]} 41... Kg6
{[%clk 0:00:31.5]} 42. f4 {[%clk 0:00:05.3]} 42... a2 {[%clk 0:00:31.4]} 43. f5+
{[%clk 0:00:02.4]} 43... Kg7 {[%clk 0:00:31.5]} 44. Kh5 {[%clk 0:00:03.2]} 44...
Rh3+ {[%clk 0:00:30.4]} 45. Kg4 {[%clk 0:00:03.8]} 45... Rh2 {[%clk 0:00:29.6]}
46. Ra8 {[%clk 0:00:02.4]} 46... Rg2+ {[%clk 0:00:29.4]} 47. Kf4 {[%clk
0:00:01.9]} 47... Rh2 {[%clk 0:00:25.7]} 48. f6+ {[%clk 0:00:01.9]} 48... Kg6
{[%clk 0:00:24.9]} 49. Rg8+ {[%clk 0:00:01.7]} 49... Kh5 {[%clk 0:00:25.2]} 50.
Ra8 {[%clk 0:00:01]} 50... Rf2+ {[%clk 0:00:23]} 51. Ke3 {[%clk 0:00:01]} 51...
Rb2 {[%clk 0:00:22.7]} 52. Kf4 {[%clk 0:00:01.4]} 52... Rg2 {[%clk 0:00:21]} 53.
Kf3 {[%clk 0:00:01]} 53... Rxg5 {[%clk 0:00:15.3]} 54. Rxa2 {[%clk 0:00:01.4]}
54... Kg6 {[%clk 0:00:15.6]} 55. Ra6 {[%clk 0:00:02.1]} 55... h5 {[%clk
0:00:15.4]} 56. Kf4 {[%clk 0:00:03]} 56... h4 {[%clk 0:00:15.1]} 57. Ra8 {[%clk
0:00:02.8]} 57... Rh5 {[%clk 0:00:13.3]} 58. e5 {[%clk 0:00:02.7]} 58... h3
{[%clk 0:00:13.7]} 59. Rg8+ {[%clk 0:00:02.6]} 59... Kh7 {[%clk 0:00:13.9]} 60.
Rg7+ {[%clk 0:00:02.8]} 60... Kh6 {[%clk 0:00:14.4]} 61. Rg1 {[%clk 0:00:01.7]}
61... h2 {[%clk 0:00:10.8]} 62. Rh1 {[%clk 0:00:02.6]} 62... Kg6 {[%clk
0:00:11.1]} 63. Ke4 {[%clk 0:00:02.8]} 63... Rh3 {[%clk 0:00:09.1]} 64. Kd5
{[%clk 0:00:02.4]} 64... Kf5 {[%clk 0:00:09.7]} 65. Kd6 {[%clk 0:00:03.3]} 65...
Rh7 {[%clk 0:00:07.6]} 66. Kd5 {[%clk 0:00:02.8]} 66... Rh8 {[%clk 0:00:05.2]}
67. Kd6 {[%clk 0:00:02.1]} 67... Rh7 {[%clk 0:00:05.5]} 68. Kd5 {[%clk
0:00:02.1]} 68... Kf4 {[%clk 0:00:05.2]} 69. e6 {[%clk 0:00:01.7]} 69... fxe6+
{[%clk 0:00:03.7]} 70. Kxe6 {[%clk 0:00:02.6]} 70... Kg3 {[%clk 0:00:04]} 71. f7
{[%clk 0:00:03.2]} 71... Rxf7 {[%clk 0:00:04]} 72. Kxf7 {[%clk 0:00:04.1]} 72...
Kg2 {[%clk 0:00:04.6]} 73. Rb1 {[%clk 0:00:04.8]} 73... h1=Q {[%clk 0:00:04.8]}
74. Rxh1 {[%clk 0:00:05.7]} 74... Kxh1 {[%clk 0:00:04.6]} 1/2-1/2

[Event "Late-Titled-Tuesday-Blitz-July-09-2024"]
[Site "Chess.com"]
[Date "2024.07.09"]
[Round "7"]
[White "ReinisUz"]
[Black "glebus008"]
[Result "1-0"]
[WhiteElo "2555"]
[BlackElo "2408"]
[TimeControl "180+1"]
[EndTime "15:17:59 PDT"]
[Termination "ReinisUz won on time"]

1. c4 {[%clk 0:03:00.9]} 1... e6 {[%clk 0:02:59.6]} 2. Nc3 {[%clk 0:03:00.6]}
2... d5 {[%clk 0:03:00.1]} 3. d4 {[%clk 0:03:00.9]} 3... c5 {[%clk 0:03:00.7]}
4. cxd5 {[%clk 0:02:58.8]} 4... cxd4 {[%clk 0:03:01.1]} 5. Qa4+ {[%clk 0:02:59]}
5... Bd7 {[%clk 0:03:01.5]} 6. Qxd4 {[%clk 0:02:59.1]} 6... exd5 {[%clk
0:02:58.3]} 7. Qxd5 {[%clk 0:02:57.6]} 7... Nf6 {[%clk 0:02:58.5]} 8. Qxb7
{[%clk 0:02:54.2]} 8... Nc6 {[%clk 0:02:53.8]} 9. Qb3 {[%clk 0:02:53.8]} 9...
Rb8 {[%clk 0:02:51.3]} 10. Qd1 {[%clk 0:02:53.3]} 10... Bc5 {[%clk 0:02:45.6]}
11. Nf3 {[%clk 0:02:49.5]} 11... O-O {[%clk 0:02:43]} 12. e3 {[%clk 0:02:48.5]}
12... Qe7 {[%clk 0:02:42.6]} 13. Be2 {[%clk 0:02:41.2]} 13... Rfd8 {[%clk
0:02:42.5]} 14. O-O {[%clk 0:02:40.6]} 14... Bf5 {[%clk 0:02:35]} 15. Qa4 {[%clk
0:02:38.4]} 15... Nb4 {[%clk 0:02:28.9]} 16. Ne1 {[%clk 0:02:19.6]} 16... Bd7
{[%clk 0:02:12]} 17. Qb3 {[%clk 0:01:58.6]} 17... Be6 {[%clk 0:02:03.5]} 18. Qa4
{[%clk 0:01:56.8]} 18... Bd7 {[%clk 0:02:03.4]} 19. Bb5 {[%clk 0:01:56.2]} 19...
Rxb5 {[%clk 0:01:56.2]} 20. Nxb5 {[%clk 0:01:52.6]} 20... a6 {[%clk 0:01:56.5]}
21. a3 {[%clk 0:01:30.3]} 21... Bxb5 {[%clk 0:01:53.9]} 22. Qb3 {[%clk
0:01:26.2]} 22... Nc6 {[%clk 0:01:37.7]} 23. Nf3 {[%clk 0:01:22.7]} 23... Bxf1
{[%clk 0:01:35.7]} 24. Kxf1 {[%clk 0:01:23.6]} 24... Ne5 {[%clk 0:01:32.2]} 25.
Ne1 {[%clk 0:01:13.6]} 25... Qd6 {[%clk 0:01:12.2]} 26. Qc2 {[%clk 0:01:03.9]}
26... Neg4 {[%clk 0:01:08.3]} 27. h3 {[%clk 0:01:02.1]} 27... Ne5 {[%clk
0:00:59.6]} 28. b4 {[%clk 0:00:58.1]} 28... Bb6 {[%clk 0:00:52.8]} 29. Bb2
{[%clk 0:00:58.1]} 29... Qc7 {[%clk 0:00:29.9]} 30. Qxc7 {[%clk 0:00:45.9]}
30... Bxc7 {[%clk 0:00:29.5]} 31. Rc1 {[%clk 0:00:46.5]} 31... Bb8 {[%clk
0:00:23.8]} 32. Ke2 {[%clk 0:00:46.5]} 32... Kf8 {[%clk 0:00:20.9]} 33. Rc5
{[%clk 0:00:44.9]} 33... Nfd7 {[%clk 0:00:17.6]} 34. Ra5 {[%clk 0:00:39.4]}
34... Nc4 {[%clk 0:00:17.4]} 35. Bxg7+ {[%clk 0:00:29.3]} 35... Kxg7 {[%clk
0:00:16.6]} 36. Rxa6 {[%clk 0:00:30]} 36... Nde5 {[%clk 0:00:12.4]} 37. a4
{[%clk 0:00:28.4]} 37... Nb2 {[%clk 0:00:11]} 38. b5 {[%clk 0:00:25.5]} 38...
Nec4 {[%clk 0:00:11.1]} 39. Nf3 {[%clk 0:00:22.1]} 39... Bc7 {[%clk 0:00:09.4]}
40. Ra7 {[%clk 0:00:20.6]} 40... Bb6 {[%clk 0:00:09.4]} 41. Ra6 {[%clk
0:00:20.1]} 41... Rb8 {[%clk 0:00:08.6]} 42. g4 {[%clk 0:00:18]} 42... Na5
{[%clk 0:00:08.7]} 43. Ne5 {[%clk 0:00:13.8]} 43... Nxa4 {[%clk 0:00:08.9]} 44.
Nd7 {[%clk 0:00:12.6]} 44... Rb7 {[%clk 0:00:09]} 45. Nxb6 {[%clk 0:00:12.3]}
45... Rxb6 {[%clk 0:00:08.4]} 46. Rxa5 {[%clk 0:00:12.4]} 46... Nc3+ {[%clk
0:00:08.5]} 47. Kd3 {[%clk 0:00:12.7]} 47... Nxb5 {[%clk 0:00:08.9]} 48. Ra4
{[%clk 0:00:12]} 48... Nd6 {[%clk 0:00:08.4]} 49. h4 {[%clk 0:00:10.8]} 49...
Rb3+ {[%clk 0:00:08.3]} 50. Ke2 {[%clk 0:00:11]} 50... Rb2+ {[%clk 0:00:08.5]}
51. Kf3 {[%clk 0:00:11.5]} 51... Ne8 {[%clk 0:00:07.3]} 52. Kg3 {[%clk
0:00:11.7]} 52... Nf6 {[%clk 0:00:07.5]} 53. f3 {[%clk 0:00:12.3]} 53... Nd5
{[%clk 0:00:07.6]} 54. Ra3 {[%clk 0:00:11.4]} 54... Rc2 {[%clk 0:00:06.6]} 55.
Rd3 {[%clk 0:00:11]} 55... Nf6 {[%clk 0:00:05.9]} 56. g5 {[%clk 0:00:10.8]}
56... Nh5+ {[%clk 0:00:06.1]} 57. Kg4 {[%clk 0:00:11]} 57... Kg6 {[%clk
0:00:06.3]} 58. Rd6+ {[%clk 0:00:10.8]} 58... f6 {[%clk 0:00:06.8]} 59. f4
{[%clk 0:00:09.2]} 59... Rg2+ {[%clk 0:00:06]} 60. Kf3 {[%clk 0:00:09.5]} 60...
Rg3+ {[%clk 0:00:06.4]} 61. Kf2 {[%clk 0:00:09.4]} 61... Rh3 {[%clk 0:00:06]}
62. Rd5 {[%clk 0:00:02.6]} 62... Rxh4 {[%clk 0:00:05.4]} 63. gxf6 {[%clk
0:00:03.1]} 63... Nxf6 {[%clk 0:00:05.2]} 64. Rg5+ {[%clk 0:00:03.5]} 64... Kf7
{[%clk 0:00:05]} 65. Kg3 {[%clk 0:00:03.4]} 65... Rh6 {[%clk 0:00:04.1]} 66. Ra5
{[%clk 0:00:03.2]} 66... Rg6+ {[%clk 0:00:04.3]} 67. Kf3 {[%clk 0:00:03.5]}
67... Rh6 {[%clk 0:00:03.7]} 68. e4 {[%clk 0:00:03.9]} 68... Rh3+ {[%clk
0:00:03.3]} 69. Kg2 {[%clk 0:00:04.5]} 69... Rb3 {[%clk 0:00:03.1]} 70. e5
{[%clk 0:00:04.4]} 70... Ne4 {[%clk 0:00:01.8]} 71. f5 {[%clk 0:00:04.3]} 1-0